bitfinex-derivatives/quotes_BTCF0:USTF0_20210705
["timestamp","ask_amount","ask_price","bid_price","bid_amount"]
[1625472027674,1.09915088,34217.0,34209.0,1.34180209]
[1625472027863,1.04015088,34217.0,34209.0,1.34180209]
[1625472027979,1.04015088,34217.0,34207.0,0.9353]
[1625472027980,1.38067334,34216.0,34213.0,0.50362077]
[1625472028061,1.93967334,34216.0,34213.0,0.50362077]
[1625472028161,1.99867334,34216.0,34213.0,0.50362077]
[1625472028413,0.51746639,34214.0,34212.0,0.50326166]
[1625472028514,0.63546639,34214.0,34212.0,0.50326166]
[1625472028815,0.48115088,34213.0,34212.0,0.50326166]
[1625472028915,0.59915088,34213.0,34212.0,0.50326166]
[1625472029116,1.11662136,34213.0,34211.0,0.5033685]
[1625472029216,1.11662136,34213.0,34207.0,0.9923]
[1625472029665,0.59915088,34213.0,34207.0,2.33419211]
[1625472030065,0.68645088,34213.0,34207.0,2.33419211]
[1625472030366,0.59915088,34213.0,34207.0,0.9923]
[1625472030816,0.35109217,34208.0,34207.0,0.9923]
[1625472031591,0.35109217,34208.0,34207.0,2.33275288]
[1625472031770,0.35109217,34208.0,34207.0,2.39175288]
[1625472032072,0.35109217,34208.0,34207.0,3.90354004]
[1625472032774,0.35109217,34208.0,34207.0,4.38469092]
[1625472033175,0.48115088,34213.0,34207.0,4.38469092]
[1625472033176,0.24057544,34213.0,34207.0,4.38469092]
[1625472033274,1.37902546,34223.0,34218.0,0.002]
[1625472033373,1.37902546,34223.0,34218.0,0.24769]
[1625472033475,1.37895934,34224.0,34219.0,0.057]
[1625472033574,0.059,34223.0,34219.0,0.057]
[1625472034175,0.118,34223.0,34219.0,0.057]
[1625472034777,0.24057544,34222.0,34221.0,0.24057544]
[1625472034876,0.24257544,34222.0,34221.0,0.24057544]
[1625472035329,0.30157544,34222.0,34221.0,0.24057544]
[1625472035427,0.24257544,34222.0,34221.0,0.24057544]
[1625472035727,0.30157544,34222.0,34221.0,0.24057544]
[1625472036278,0.30157544,34222.0,34221.0,0.21657544]
[1625472039283,0.30957544,34222.0,34221.0,0.21657544]
[1625472043042,0.126,34222.0,34221.0,0.21657544]
[1625472045906,0.183,34222.0,34221.0,0.21657544]
[1625472048308,0.175,34222.0,34221.0,0.21657544]
[1625472052316,0.18979193,34222.0,34221.0,0.21657544]
[1625472053069,0.43036737,34222.0,34221.0,0.21657544]
[1625472054023,0.69051737,34222.0,34221.0,0.21657544]
[1625472055076,0.93109281,34222.0,34218.0,0.24257544]
[1625472055178,0.0873,34221.0,34218.0,0.24257544]
[1625472055278,0.1463,34221.0,34218.0,0.24257544]
[1625472055378,0.057,34220.0,34218.0,0.24257544]
[1625472055477,0.116,34220.0,34218.0,0.24257544]
[1625472055877,1.32258692,34220.0,34218.0,0.24257544]
[1625472056230,0.01479277,34219.0,34218.0,0.24257544]
[1625472056329,0.07379277,34219.0,34218.0,0.24257544]
[1625472057479,1.10804215,34219.0,34218.0,0.24257544]
[1625472057582,1.16504215,34219.0,34218.0,0.24257544]
[1625472059189,1.22404215,34219.0,34218.0,0.24257544]
[1625472059488,2.43077163,34219.0,34218.0,0.24257544]
[1625472059840,2.51917163,34219.0,34218.0,0.24257544]
[1625472060137,2.46017163,34219.0,34218.0,0.24257544]
[1625472060246,7.02487163,34219.0,34218.0,0.24257544]
[1625472060340,7.08387163,34219.0,34218.0,0.24257544]
[1625472062490,7.08387163,34219.0,34218.0,0.002]
[1625472062590,8.46311866,34219.0,34218.0,0.002]
[1625472063193,8.7036941,34219.0,34218.0,0.002]
[1625472065105,8.6152941,34219.0,34218.0,0.002]
[1625472066356,8.6152941,34219.0,34215.0,0.27247]
[1625472066557,1.0348273,34216.0,34215.0,0.27247]
[1625472066661,1.1508273,34216.0,34215.0,0.27247]
[1625472066757,1.2098273,34216.0,34215.0,0.27247]
[1625472066956,1.22461575,34216.0,34215.0,0.27247]
[1625472067208,1.46519119,34216.0,34215.0,0.27247]
[1625472067308,1.40819119,34216.0,34215.0,0.27247]
[1625472067509,1.46519119,34216.0,34215.0,0.27247]
[1625472068562,1.40819119,34216.0,34215.0,0.27247]
[1625472068763,1.46519119,34216.0,34215.0,0.27247]
[1625472069366,1.40819119,34216.0,34215.0,0.27247]
[1625472069817,1.46519119,34216.0,34215.0,0.27247]
[1625472069967,1.40819119,34216.0,34215.0,0.27247]
[1625472071822,1.34919119,34216.0,34215.0,0.27247]
[1625472071922,1.29019119,34216.0,34215.0,0.27247]
[1625472072025,1.34919119,34216.0,34215.0,0.27247]
[1625472072125,1.33440274,34216.0,34215.0,0.27676785]
[1625472072627,0.29957544,34216.0,34215.0,1.28074993]
[1625472073127,0.29957544,34216.0,34215.0,1.33974993]
[1625472073225,0.24057544,34216.0,34215.0,1.33974993]
[1625472073828,0.24057544,34216.0,34215.0,2.5102077]
[1625472074379,0.24057544,34216.0,34215.0,3.84819974]
[1625472074780,0.24057544,34216.0,34215.0,3.78919974]
[1625472074980,0.24057544,34216.0,34215.0,3.84819974]
[1625472075082,0.24057544,34216.0,34215.0,3.78919974]
[1625472075180,0.24057544,34216.0,34215.0,3.84819974]
[1625472075281,0.24057544,34216.0,34215.0,4.08877518]
[1625472078236,0.24057544,34216.0,34215.0,4.08677518]
[1625472080739,1.03663415,34220.0,34215.0,4.08677518]
[1625472081192,1.03663415,34220.0,34219.0,2.1813313]
[1625472081302,1.03663415,34220.0,34219.0,2.42190674]
[1625472081542,1.03668062,34221.0,34219.0,2.42190674]
[1625472081641,1.03668062,34221.0,34219.0,2.42620374]
[1625472081846,1.03668062,34221.0,34220.0,2.18057764]
[1625472081943,1.03668062,34221.0,34220.0,2.18487461]
[1625472082249,1.03665283,34222.0,34220.0,2.18487461]
[1625472082694,1.03665283,34222.0,34221.0,2.17998556]
[1625472082794,1.03665283,34222.0,34221.0,2.18428237]
[1625472083296,1.03665283,34222.0,34221.0,2.42485781]
[1625472083748,1.72777043,34222.0,34221.0,3.0955688]
[1625472084098,0.6911176,34222.0,34221.0,3.0955688]
[1625472084752,1.72765426,34222.0,34221.0,3.0955688]
[1625472086006,0.6911176,34222.0,34221.0,3.0955688]
[1625472090466,1.72778539,34222.0,34221.0,3.0955688]
[1625472093219,0.6911176,34222.0,34221.0,4.44379915]
[1625472094021,1.72776617,34222.0,34221.0,3.0955688]
[1625472094374,0.6911176,34222.0,34221.0,4.44373153]
[1625472094922,0.6911176,34222.0,34221.0,3.0955688]
[1625472095327,1.7277165,34222.0,34221.0,3.0955688]
[1625472096225,0.6911176,34222.0,34221.0,3.0955688]
[1625472097131,1.72767329,34222.0,34221.0,3.0955688]
[1625472098383,1.78467329,34222.0,34221.0,3.0955688]
[1625472098485,1.72767329,34222.0,34221.0,3.0955688]
[1625472099687,1.72767329,34222.0,34221.0,3.3550788]
[1625472100338,0.6911176,34222.0,34221.0,3.3550788]
[1625472101439,1.72765691,34222.0,34221.0,3.3550788]
[1625472102043,1.74243675,34222.0,34221.0,3.3550788]
[1625472102746,1.74243675,34222.0,34221.0,3.0955688]
[1625472103298,0.70589744,34222.0,34221.0,3.0955688]
[1625472105505,0.70589744,34222.0,34221.0,4.44154424]
[1625472105606,0.70589744,34222.0,34221.0,4.68648424]
[1625472106608,0.6911176,34222.0,34221.0,4.4459088]
[1625472106908,0.34557057,34223.0,34221.0,8.6826088]
[1625472107360,0.34556213,34224.0,34222.0,4.20429854]
[1625472107459,0.34556213,34224.0,34222.0,4.20859496]
[1625472107611,0.34556213,34224.0,34223.0,0.72172632]
[1625472107715,0.34556213,34224.0,34223.0,0.72601949]
[1625472107911,0.36035172,34224.0,34223.0,4.92975172]
[1625472109015,0.36035172,34224.0,34223.0,8.60195172]
[1625472109567,0.36035172,34224.0,34223.0,4.92975172]
[1625472109768,0.01478959,34224.0,34223.0,4.92975172]
[1625472109871,0.34544951,34225.0,34223.0,4.92975172]
[1625472110118,0.34544951,34225.0,34224.0,4.20198288]
[1625472110370,0.36023935,34225.0,34224.0,4.20627611]
[1625472112022,0.36023935,34225.0,34224.0,4.26527611]
[1625472112222,0.34544951,34225.0,34224.0,4.26527611]
[1625472112624,0.34533643,34227.0,34224.0,4.26527611]
[1625472112923,0.34533643,34227.0,34226.0,2.85560257]
[1625472113024,0.34533643,34227.0,34226.0,2.91460257]
[1625472113327,0.34533643,34227.0,34226.0,2.91889545]
[1625472113776,0.345267,34228.0,34226.0,4.26209118]
[1625472114127,0.345267,34228.0,34227.0,0.00429278]
[1625472114226,0.345267,34228.0,34227.0,0.06329278]
[1625472114327,0.345267,34228.0,34227.0,2.9173602]
[1625472114729,0.59181498,34229.0,34227.0,2.9173602]
[1625472115028,0.59181498,34229.0,34227.0,0.06329278]
[1625472115029,0.34524122,34228.0,34227.0,0.06329278]
[1625472115228,0.34524122,34228.0,34227.0,0.059]
[1625472115428,0.34524122,34228.0,34227.0,0.06329296]
[1625472115631,0.35116685,34229.0,34227.0,3.21650463]
[1625472116030,0.35116685,34229.0,34228.0,0.00429246]
[1625472116130,0.006,34229.0,34228.0,4.5022655]
[1625472116230,0.01,34233.0,34228.0,8.3660655]
[1625472116583,0.01,34233.0,34229.0,0.00429226]
[1625472116681,0.01,34233.0,34232.0,2.84938925]
[1625472116881,0.01,34233.0,34232.0,2.90838925]
[1625472117084,0.01,34233.0,34232.0,2.9126814]
[1625472117231,0.006,34233.0,34232.0,2.9126814]
[1625472117632,0.006,34233.0,34232.0,3.63440772]
[1625472117982,0.006,34233.0,34232.0,3.73440772]
[1625472118436,0.006,34233.0,34232.0,2.56112979]
[1625472118533,0.006,34233.0,34232.0,2.50212979]
[1625472118734,0.006,34233.0,34232.0,2.49783764]
[1625472118985,0.7548509,34233.0,34232.0,1.49217085]
[1625472119087,0.8118509,34233.0,34232.0,1.49217085]
[1625472119187,0.8118509,34233.0,34232.0,1.01101997]
[1625472119389,3.57127849,34233.0,34232.0,0.34057544]
[1625472119487,3.63027849,34233.0,34232.0,0.34057544]
[1625472119587,3.64506722,34233.0,34232.0,0.34057544]
[1625472119687,4.1262181,34233.0,34232.0,0.34057544]
[1625472120339,5.50592845,34233.0,34232.0,0.34057544]
[1625472120690,5.50592845,34233.0,34232.0,0.1]
[1625472121692,5.44692845,34233.0,34232.0,0.1]
[1625472121792,5.75111845,34233.0,34232.0,0.1]
[1625472122092,7.30351635,34233.0,34232.0,0.159]
[1625472122643,5.69211845,34233.0,34232.0,0.159]
[1625472122992,5.38792845,34233.0,34232.0,0.159]
[1625472123096,3.99342937,34233.0,34232.0,0.159]
[1625472123345,2.78623368,34233.0,34232.0,0.66212578]
[1625472123644,2.78623368,34233.0,34232.0,0.90270122]
[1625472123745,2.78623368,34233.0,34232.0,1.57341793]
[1625472124949,2.78623368,34233.0,34232.0,1.63241793]
[1625472125698,2.78623368,34233.0,34232.0,1.57341793]
[1625472126201,2.78623368,34233.0,34232.0,1.89048793]
[1625472126750,2.48865824,34233.0,34232.0,1.89048793]
[1625472126851,2.48265824,34233.0,34232.0,1.89048793]
[1625472127050,2.48265824,34233.0,34232.0,1.94948793]
[1625472127275,2.1830828,34233.0,34232.0,1.89048793]
[1625472127390,0.51746811,34233.0,34232.0,2.89571513]
[1625472127587,0.51746811,34233.0,34232.0,2.90000669]
[1625472127677,6.811e-05,34233.0,34232.0,2.90000669]
[1625472127768,0.5175687,34235.0,34232.0,5.71107505]
[1625472128056,0.5175687,34235.0,34233.0,0.00428437]
[1625472128151,0.5175687,34235.0,34233.0,0.12228437]
[1625472128266,1.60936116,34244.0,34233.0,0.12228437]
[1625472128267,1.28144127,34241.0,34234.0,3.51146489]
[1625472128366,1.28144127,34241.0,34234.0,3.57046489]
[1625472128474,1.28144127,34241.0,34234.0,3.62946489]
[1625472128605,1.28144127,34241.0,34235.0,0.00428454]
[1625472128709,1.04086583,34241.0,34235.0,0.06328454]
[1625472128831,0.006,34241.0,34240.0,0.1]
[1625472128916,0.006,34241.0,34240.0,0.41767]
[1625472129037,0.006,34241.0,34240.0,0.47667]
[1625472129113,1.20649565,34245.0,34240.0,0.47667]
[1625472129218,1.20649565,34245.0,34242.0,3.6865]
[1625472129307,1.20649565,34245.0,34242.0,3.8045]
[1625472129407,1.03396416,34249.0,34242.0,3.8045]
[1625472129705,1.03396416,34249.0,34248.0,0.96230176]
[1625472129806,1.03396416,34249.0,34248.0,1.33283176]
[1625472130105,1.20648792,34253.0,34248.0,1.33283176]
[1625472130306,1.20648792,34253.0,34248.0,1.43283176]
[1625472130508,1.20478295,34255.0,34248.0,1.43283176]
[1625472130709,1.20478295,34255.0,34248.0,1.33283176]
[1625472131414,1.20478295,34255.0,34254.0,0.1]
[1625472131711,1.20478295,34255.0,34254.0,0.64015088]
[1625472131961,1.20499686,34257.0,34254.0,0.64015088]
[1625472132059,1.20499686,34257.0,34254.0,0.69915088]
[1625472132361,1.20499686,34257.0,34254.0,0.59915088]
[1625472132611,1.20486068,34260.0,34254.0,0.59915088]
[1625472133116,1.20290101,34263.0,34254.0,0.59915088]
[1625472133313,1.20290101,34263.0,34259.0,0.1]
[1625472133413,1.20290101,34263.0,34259.0,0.43527]
[1625472133665,1.20290101,34263.0,34259.0,0.33527]
[1625472133771,1.20299976,34265.0,34262.0,0.72172632]
[1625472133868,1.20299976,34265.0,34262.0,0.78072632]
[1625472134317,1.20299976,34265.0,34264.0,0.1]
[1625472134516,1.44189282,34266.0,34264.0,0.159]
[1625472134867,1.44189282,34266.0,34264.0,0.059]
[1625472136672,0.24057544,34266.0,34264.0,0.059]
[1625472137476,0.24057544,34266.0,34264.0,0.118]
[1625472137724,1.25686539,34269.0,34264.0,0.118]
[1625472138278,0.057,34269.0,34264.0,0.118]
[1625472139430,0.057,34269.0,34268.0,0.1]
[1625472139529,0.057,34269.0,34268.0,0.39995]
[1625472139780,0.057,34269.0,34268.0,0.64052544]
[1625472139878,0.057,34269.0,34268.0,0.54052544]
[1625472140579,0.057,34269.0,34268.0,0.59952544]
[1625472141533,1.43813344,34273.0,34268.0,0.59952544]
[1625472141746,1.197558,34273.0,34268.0,0.59952544]
[1625472141861,1.197558,34273.0,34272.0,0.72172632]
[1625472141947,1.197558,34273.0,34272.0,0.78072632]
[1625472142049,0.006,34274.0,34272.0,0.83972632]
[1625472143435,0.006,34274.0,34273.0,0.1]
[1625472143534,0.006,34274.0,34273.0,0.218]
[1625472147345,0.006,34283.0,34273.0,0.218]
[1625472147694,0.006,34283.0,34276.0,3.7871]
[1625472147794,0.006,34283.0,34282.0,0.72172632]
[1625472147995,0.006,34283.0,34282.0,0.78072632]
[1625472150250,0.006,34283.0,34282.0,0.88072632]
[1625472151551,0.006,34283.0,34282.0,0.82172632]
[1625472152002,0.006,34283.0,34282.0,0.88072632]
[1625472152102,0.006,34283.0,34282.0,0.82172632]
[1625472152761,0.065,34283.0,34282.0,0.58115088]
[1625472152965,0.45589,34283.0,34282.0,0.58115088]
[1625472153055,0.51289,34283.0,34282.0,0.58115088]
[1625472153756,0.51289,34283.0,34272.0,0.24057544]
[1625472153855,0.24057544,34273.0,34272.0,0.24057544]
[1625472153957,0.52807544,34273.0,34272.0,0.24057544]
[1625472155961,0.52807544,34273.0,34272.0,0.05057544]
[1625472156060,0.52807544,34273.0,34271.0,0.002]
[1625472156309,0.49807544,34273.0,34269.0,0.9713]
[1625472157862,0.24057544,34270.0,34269.0,0.9713]
[1625472157962,0.29757544,34270.0,34269.0,0.9713]
[1625472161119,0.24057544,34270.0,34269.0,0.9713]
[1625472162324,0.29757544,34270.0,34269.0,0.9713]
[1625472162677,0.24057544,34270.0,34269.0,0.9713]
[1625472163178,0.24057544,34270.0,34269.0,1.0303]
[1625472163279,0.24057544,34270.0,34269.0,1.24181]
[1625472166588,0.24057544,34270.0,34269.0,1.30081]
[1625472167043,0.21057544,34273.0,34269.0,1.30081]
[1625472167240,1.31949091,34289.0,34269.0,1.30081]
[1625472167241,0.2989,34289.0,34269.0,1.30081]
[1625472167340,0.2989,34289.0,34270.0,0.00428117]
[1625472167490,0.3579,34289.0,34270.0,0.12228117]
[1625472167597,0.01478723,34288.0,34270.0,0.12228117]
[1625472167891,0.24057544,34283.0,34282.0,0.24057544]
[1625472167991,0.24057544,34283.0,34282.0,0.58526544]
[1625472168092,0.24057544,34283.0,34282.0,0.64426544]
[1625472168193,0.24057544,34283.0,34282.0,0.58526544]
[1625472168292,0.24057544,34283.0,34282.0,0.72026544]
[1625472169483,0.35657544,34283.0,34269.0,0.07208544]
[1625472169611,0.0879,34282.0,34265.0,0.87065665]
[1625472169685,0.5879,34282.0,34266.0,0.9868666]
[1625472169746,0.057,34281.0,34266.0,0.9868666]
[1625472169849,0.5,34280.0,34266.0,0.9868666]
[1625472169986,0.72172632,34267.0,34266.0,0.9552666]
[1625472170069,1.51930176,34267.0,34265.0,0.002]
[1625472170149,0.055,34263.0,34248.0,0.9926029]
[1625472170249,0.059,34260.0,34248.0,0.9926029]
[1625472170402,0.059,34259.0,34248.0,0.9926029]
[1625472170483,0.234,34259.0,34248.0,0.9926029]
[1625472170587,0.175,34259.0,34248.0,0.9926029]
[1625472170670,0.5,34258.0,34248.0,0.9777029]
[1625472170775,0.057,34257.0,34248.0,0.9352029]
[1625472170854,0.057,34257.0,34237.0,1.16206131]
[1625472170855,0.175,34257.0,34237.0,1.16206131]
[1625472170970,0.5,34256.0,34237.0,1.16206131]
[1625472171059,0.057,34255.0,34237.0,1.16206131]
[1625472171269,0.175,34255.0,34237.0,1.16206131]
[1625472171568,0.175,34255.0,34227.0,1.16572133]
[1625472171653,0.175,34255.0,34238.0,0.00429274]
[1625472171754,0.175,34255.0,34238.0,0.06329274]
[1625472171851,0.175,34255.0,34238.0,0.00429274]
[1625472171953,0.48115088,34239.0,34238.0,0.24057544]
[1625472172175,0.48115088,34239.0,34236.0,1.16336501]
[1625472172261,0.48115088,34239.0,34237.0,1.16295963]
[1625472172355,0.59715088,34239.0,34237.0,1.16295963]
[1625472172550,0.65615088,34239.0,34237.0,1.16295963]
[1625472172650,3.7483,34238.0,34230.0,1.16590543]
[1625472172749,3.8073,34238.0,34230.0,1.22490543]
[1625472172850,0.057,34237.0,34230.0,1.16590543]
[1625472172951,0.175,34237.0,34230.0,1.16590543]
[1625472173350,0.175,34237.0,34227.0,1.16778883]
[1625472173752,0.175,34237.0,34231.0,0.16685118]
[1625472173951,0.72172632,34232.0,34231.0,0.16685118]
[1625472174052,1.14935632,34232.0,34228.0,0.16702155]
[1625472174455,1.14935632,34232.0,34226.0,0.16707176]
[1625472174903,1.14935632,34232.0,34222.0,1.16950233]
[1625472174904,1.14935632,34232.0,34225.0,0.16714503]
[1625472175355,1.14935632,34232.0,34224.0,0.16720761]
[1625472175907,0.90878088,34232.0,34225.0,0.16728006]
[1625472176006,0.66820544,34232.0,34225.0,0.16728006]
[1625472176406,0.66820544,34232.0,34218.0,0.9592]
[1625472176407,0.66820544,34232.0,34222.0,0.16730564]
[1625472176857,0.66820544,34232.0,34223.0,0.16725577]
[1625472176957,1.16820544,34232.0,34223.0,0.16725577]
[1625472177308,1.16820544,34232.0,34223.0,0.16925577]
[1625472177509,1.16820544,34232.0,34223.0,0.002]
[1625472177859,0.057,34223.0,34221.0,0.17140414]
[1625472177959,0.72172632,34222.0,34221.0,0.17140414]
[1625472178061,0.83772632,34222.0,34221.0,0.004]
[1625472178360,0.83772632,34222.0,34219.0,6.53e-05]
[1625472178460,0.83772632,34222.0,34218.0,0.7682653]
[1625472178461,0.89672632,34222.0,34218.0,0.7682653]
[1625472178661,0.89672632,34222.0,34217.0,0.008]
[1625472179462,1.39672632,34222.0,34217.0,0.008]
[1625472179913,0.051,34216.0,34212.0,0.16761169]
[1625472180014,0.32748,34216.0,34213.0,0.16753541]
[1625472180113,0.057,34215.0,34213.0,0.16753541]
[1625472180214,0.175,34215.0,34213.0,0.16753541]
[1625472180514,0.175,34215.0,34209.0,1.17274786]
[1625472180714,0.175,34215.0,34204.0,1.17410686]
[1625472180715,0.5,34214.0,34204.0,1.17410686]
[1625472180825,0.057,34213.0,34204.0,1.17410686]
[1625472180914,0.116,34213.0,34204.0,1.17410686]
[1625472181014,0.5,34212.0,34204.0,1.17410686]
[1625472181115,0.057,34211.0,34204.0,1.17410686]
[1625472181214,4.79,34205.0,34204.0,1.17410686]
[1625472181315,5.11464,34205.0,34204.0,1.17410686]
[1625472181415,5.11464,34205.0,34199.0,1.17591252]
[1625472181516,5.17364,34205.0,34199.0,1.17591252]
[1625472181971,0.96230176,34200.0,34196.0,1.17808878]
[1625472182082,0.057,34199.0,34196.0,1.17808878]
[1625472182173,0.116,34199.0,34196.0,1.17808878]
[1625472182266,0.175,34199.0,34196.0,1.17808878]
[1625472182376,0.175,34199.0,34194.0,1.17879473]
[1625472182867,0.118,34199.0,34194.0,1.17879473]
[1625472182968,0.118,34199.0,34193.0,1.17928105]
[1625472183470,0.118,34199.0,34188.0,1.17750056]
[1625472183569,0.175,34199.0,34188.0,1.17750056]
[1625472183976,0.72172632,34189.0,34186.0,1.17816932]
[1625472184075,1.12288632,34189.0,34186.0,1.17816932]
[1625472184930,1.12288632,34189.0,34184.0,1.17954515]
[1625472185934,1.12288632,34189.0,34179.0,1.51655805]
[1625472185935,1.12288632,34189.0,34179.0,1.17748018]
[1625472186035,0.72172632,34180.0,34179.0,1.17748018]
[1625472187487,0.72172632,34180.0,34179.0,1.85026645]
[1625472187686,5.64612632,34180.0,34179.0,1.85026645]
[1625472187888,5.64612632,34180.0,34179.0,0.67278627]
[1625472189343,0.72172632,34180.0,34179.0,1.84674319]
[1625472189794,0.72172632,34180.0,34179.0,0.67278627]
[1625472190746,0.72172632,34180.0,34179.0,0.73178627]
[1625472190945,0.72172632,34180.0,34179.0,0.67278627]
[1625472191246,0.37498871,34180.0,34179.0,0.67278627]
[1625472192098,0.37498871,34180.0,34179.0,0.91336171]
[1625472193602,0.37498871,34180.0,34179.0,0.24057544]
[1625472193899,0.61959871,34180.0,34179.0,0.24057544]
[1625472195604,0.67859871,34180.0,34179.0,0.24057544]
[1625472196507,0.73759871,34180.0,34179.0,0.24057544]
[1625472197807,0.73759871,34180.0,34174.0,0.24057544]
[1625472198156,0.24057544,34175.0,34174.0,0.24057544]
[1625472198257,0.35857544,34175.0,34174.0,0.24057544]
[1625472199310,0.35857544,34175.0,34174.0,0.24257544]
[1625472202114,0.35857544,34175.0,34174.0,0.002]
[1625472202213,0.59915088,34175.0,34174.0,0.002]
[1625472204720,0.68795088,34175.0,34156.0,0.24057544]
[1625472204822,0.057,34174.0,34156.0,0.24057544]
[1625472205026,0.175,34174.0,34156.0,0.24057544]
[1625472205121,0.675,34174.0,34152.0,1.23064605]
[1625472205223,0.675,34174.0,34152.0,1.14697544]
[1625472205321,0.675,34174.0,34173.0,0.002]
[1625472205422,0.057,34173.0,34152.0,1.14697544]
[1625472205523,0.059,34169.0,34152.0,1.14697544]
[1625472205622,3.919,34159.0,34152.0,1.14697544]
[1625472205723,3.978,34159.0,34152.0,1.14697544]
[1625472205923,4.037,34159.0,34152.0,1.14697544]
[1625472206230,0.48115088,34153.0,34152.0,1.14697544]
[1625472206429,0.54015088,34153.0,34152.0,1.14697544]
[1625472206527,0.59915088,34153.0,34152.0,1.14697544]
[1625472206730,0.54015088,34153.0,34152.0,1.14697544]
[1625472207230,0.059,34153.0,34152.0,1.14697544]
[1625472207731,0.24057544,34154.0,34152.0,1.14697544]
[1625472207832,0.24057544,34154.0,34152.0,1.47257544]
[1625472208232,0.24057544,34154.0,34153.0,0.24057544]
[1625472208532,0.24057544,34154.0,34153.0,0.2448676]
[1625472215443,3.919,34159.0,34153.0,0.2448676]
[1625472215542,3.978,34159.0,34153.0,0.2448676]
[1625472215642,4.037,34159.0,34153.0,0.2448676]
[1625472215943,4.037,34159.0,34154.0,0.00429231]
[1625472216144,4.094,34159.0,34154.0,0.00429231]
[1625472216243,4.094,34159.0,34153.0,0.24057544]
[1625472216344,4.094,34159.0,34158.0,0.24057544]
[1625472217247,4.094,34159.0,34158.0,0.23457544]
[1625472220301,4.043,34159.0,34158.0,0.23457544]
[1625472220802,4.043,34159.0,34158.0,0.23885854]
[1625472222404,3.984,34159.0,34158.0,0.23885854]
[1625472222505,3.925,34159.0,34158.0,0.23885854]
[1625472226311,3.919,34159.0,34158.0,0.23885854]
[1625472227714,4.13562,34159.0,34158.0,0.23885854]
[1625472228016,4.25362,34159.0,34158.0,0.23885854]
[1625472228116,4.31062,34159.0,34158.0,0.23885854]
[1625472229967,4.25162,34159.0,34158.0,0.23885854]
[1625472230068,4.19462,34159.0,34158.0,0.23885854]
[1625472230167,3.978,34159.0,34158.0,0.23885854]
[1625472230368,3.978,34159.0,34158.0,2.4474486]
[1625472230668,3.919,34159.0,34158.0,2.4474486]
[1625472230919,3.919,34159.0,34158.0,2.45612207]
[1625472231119,4.037,34159.0,34158.0,2.45612207]
[1625472231519,3.978,34159.0,34158.0,2.45612207]
[1625472232321,4.037,34159.0,34158.0,2.45612207]
[1625472232724,4.037,34159.0,34158.0,3.64885157]
[1625472233223,4.094,34159.0,34158.0,3.64885157]
[1625472233773,4.094,34159.0,34158.0,2.45612207]
[1625472234226,4.094,34159.0,34158.0,3.64914954]
[1625472234374,4.037,34159.0,34158.0,3.64914954]
[1625472234726,4.037,34159.0,34158.0,5.01530908]
[1625472235781,4.094,34159.0,34158.0,5.01530908]
[1625472236484,4.094,34159.0,34158.0,3.64914954]
[1625472236783,0.175,34159.0,34158.0,3.64914954]
[1625472238740,0.175,34159.0,34158.0,5.02286996]
[1625472238990,0.175,34159.0,34158.0,5.01419649]
[1625472239870,0.116,34159.0,34158.0,5.27731649]
[1625472239942,0.059,34159.0,34158.0,5.27731649]
[1625472240042,0.24657544,34164.0,34158.0,5.27731649]
[1625472240142,0.30557544,34164.0,34158.0,5.27731649]
[1625472240244,0.057,34163.0,34158.0,5.27731649]
[1625472240344,0.116,34163.0,34159.0,0.00428857]
[1625472240444,0.116,34163.0,34162.0,0.24057544]
[1625472240545,0.175,34163.0,34162.0,0.24057544]
[1625472240854,0.175,34163.0,34162.0,0.24486343]
[1625472240948,4.047,34163.0,34162.0,0.24486343]
[1625472241046,4.047,34163.0,34162.0,5.05097747]
[1625472241245,0.175,34163.0,34162.0,5.05097747]
[1625472241547,0.175,34163.0,34162.0,3.67780203]
[1625472243553,0.175,34163.0,34162.0,5.05196759]
[1625472247862,0.175,34163.0,34162.0,6.59768327]
[1625472250615,0.116,34163.0,34162.0,6.59768327]
[1625472252020,0.057,34163.0,34162.0,6.59768327]
[1625472253222,0.24057544,34167.0,34162.0,6.59768327]
[1625472253323,0.006,34168.0,34162.0,6.59768327]
[1625472253423,0.006,34168.0,34162.0,6.69768327]
[1625472253525,0.059,34167.0,34163.0,0.01058822]
[1625472253675,0.006,34168.0,34163.0,0.01487914]
[1625472253773,0.006,34168.0,34163.0,0.07387914]
[1625472253877,0.006,34168.0,34164.0,0.01058512]
[1625472253975,0.43138511,34179.0,34167.0,5.15492168]
[1625472254082,0.43138511,34179.0,34167.0,6.35773674]
[1625472254275,0.43138511,34179.0,34168.0,0.01486561]
[1625472254474,0.57442075,34180.0,34168.0,0.01486561]
[1625472254475,0.057,34180.0,34171.0,6.35332]
[1625472254574,0.24057544,34179.0,34171.0,7.31179632]
[1625472254775,0.24057544,34179.0,34171.0,7.41608676]
[1625472255077,0.22268353,34172.0,34171.0,7.41608676]
[1625472255277,0.22268353,34172.0,34171.0,7.47508676]
[1625472255527,0.22268353,34172.0,34171.0,6.11195211]
[1625472255628,0.22268353,34172.0,34171.0,2.67772508]
[1625472255777,0.01,34172.0,34171.0,2.67772508]
[1625472255979,0.01,34172.0,34171.0,4.39169156]
[1625472256277,0.01,34173.0,34171.0,4.38569156]
[1625472256478,0.01,34173.0,34171.0,4.44469156]
[1625472256577,0.01,34173.0,34172.0,0.01054109]
[1625472256678,0.01,34173.0,34172.0,0.0738307]
[1625472256778,0.01,34173.0,34172.0,0.0148307]
[1625472256878,0.069,34173.0,34172.0,6.52424203]
[1625472256979,0.128,34173.0,34172.0,6.52424203]
[1625472257080,0.128,34173.0,34172.0,6.51370094]
[1625472257279,0.128,34173.0,34172.0,4.80069796]
[1625472257379,0.128,34173.0,34172.0,4.90069796]
[1625472259238,0.118,34173.0,34172.0,4.89469796]
[1625472259685,0.175,34173.0,34172.0,4.89469796]
[1625472260035,0.118,34173.0,34172.0,4.89469796]
[1625472262193,0.059,34173.0,34172.0,4.89469796]
[1625472262294,0.059,34173.0,34172.0,4.88869796]
[1625472263143,0.118,34173.0,34172.0,4.88869796]
[1625472263393,0.059,34173.0,34172.0,4.88869796]
[1625472263695,0.059,34173.0,34172.0,4.89927339]
[1625472263897,0.057,34177.0,34172.0,4.89927339]
[1625472263998,0.116,34177.0,34172.0,4.89927339]
[1625472264197,0.116,34177.0,34176.0,3.43427687]
[1625472264597,0.116,34177.0,34176.0,3.67485231]